{"text_format":"3","workbook":"xlsx","n_sheets":4,"sheets":["Erklärung","Mitarbeiter","Aushilfen","Verträge"],"not_rendered":{"defined_names":5,"comments":3},"read":"whole","date_system":"1900"}

{"sheet":"Erklärung","index":0,"n_rows":22,"n_cols":2,"rows_kept":22}
[]
[null,"Vielen Dank, dass Sie unseren Mitarbeiter-Stammdaten-Bogen (MSB) nutzen."]
[]
[null,"Wir möchten für Sie die Datenübermittlung an lohndirekt so einfach wie möglich gestalten. Der Gesetzgeber verlangt für eine fehlerfreie Entgeltabrechnung mittlerweile sehr viele Daten, sodass wir diese bei Ihnen abfragen müssen. Hierfür bitten wir um Ihr Verständnis."]
[]
[null,"Was ist bei der Nutzung des MSB zu beachten?"]
[null,"1. Speichern Sie zunächst die Vorlagen-Datei (*.xlt) auf Ihrem Rechner/ Server ab. \n\n2. Öffnen Sie die Datei mit Doppelklick (Neu). Da es sich um eine Excel-Vorlage handelt, öffnen Sie immer eine neue Excel-Datei (*.xls). Microsoft Excel vergibt automatisch einen aufsteigenden Dateinamen (z.B. Mitarbeiterstamm1.xls), den Sie beim Speichern ändern können.\n\n3. Wir haben diese Excel-Datei in mehrere Unterformulare gegliedert. Sie finden am unteren Rand dieser Datei die Register \"Erklärung\" / \"Mitarbeiter\" / \"Aushilfe\" / \"Verträge\". \n\n4. Wählen Sie zunächst das Register \"Mitarbeiter\" oder \"Aushilfe\" (nur bei Mini-Job / Kurzfristig / Student) je nach Status des neuen Mitarbeiters aus. Bei Aushilfen sind aufgrund der gesetzlichen Vorgaben weniger Daten notwendig.\n\n5. Füllen Sie das Formular sorgfältig und vollständig aus. Am rechten Rand finden Sie die Symbole a und r. Alle Zeilen müssen mit a gekennzeichnet sein, ansonsten fehlen noch Angaben von Ihnen. Eingabe-Hinweise finden Sie im grauen rechten Bereich.\n\n6. Nachdem Sie die Stammdaten des Mitarbeiters hinterlegt haben, können Sie unter dem Register \"Verträge\" \nweitere Entgeltbestandteile hinterlegen. Hierzu gehören u.a. ein VL-Vertrag und/oder ein Vertrag zur betrieblichen \nAltersversorgung.\n\nWenn Sie mit dem Programm Excel arbeiten, benutzen Sie die Tabulator-(D)-Taste und Sie springen von \nEingabefeld zu Eingabefeld. Füllen Sie die entsprechenden Felder der Reihe nach aus."]
[]
[null,"Wie kann ich die Texte größer machen?"]
[null,"Wir haben die Standard-Ansicht für einen 17\"-Monitor mit einer Auflösung von 1024 x 768 Pixel angepasst. Sie können in der oberen Symbol-Leiste den Zoom (75%) oder über Ansicht -> Zoom die Ansicht vergrößern. Mit der Veränderung werden alle Texte größer - auch die Kommentare."]
[]
[null,"Einige Fragen kann ich nicht beantworten?"]
[null,"In dieser Datei sind umfassende Kommentare vorhanden, die Ihnen jeden Schritt sowie den Hintergrund erklären. Diese Felder erkennen Sie an einer kleinen farbigen Ecke in der Zelle.\n\nWenn trotzdem eine Frage offen bleibt, rufen Sie bei uns an."]
[]
[null,"Wie soll ich den MSB übermitteln?"]
[null,"Speichern Sie zunächst die Datei immer auf Ihrem Rechner/ Server als XLS-Datei (Standard) ab. Sie können die Datei (meistens) direkt per E-Mail aus Microsoft Excel verschicken: Datei -> Senden an -> Mailempfänger (als Anlage). Verschicken Sie diese Datei immer nur als Anlage einer E-Mail!"]
[]
[null,"Was muss ich bei der Benutzung unter OpenOffice bzw. StarOffice beachten?"]
[null,"Die Datei wurde mit Microsoft Excel erstellt. Bei der Verwendung anderer Programme (wie OpenOffice) kann es zu Einschränkungen (z.B. Ansicht der Kommentare, Ausdruck) kommen. So werden die Kontroll-Symbole a und r als a und r dargestellt. Bitte senden Sie uns ausschließlich Dateien im XLS-Format (auch nicht XLSX)."]
[]
[null,"Ich bin Neukunde. Sind wirklich alle Daten wichtig?"]
[null,"Viele der Angaben sind aus der letzten Verdienstabrechnung bzw. im Lohnkonto ersichtlich und brauchen daher nicht doppelt angegeben zu werden. Sollten jedoch Änderungen zur beigefügten Verdienstabrechnung (z. B. Änderung der Steuerklasse) berücksichtigt werden bzw. eingetreten sein, dann notieren Sie diese bitte in diesem Erfassungsbogen. Die hierin enthaltenen Angaben haben Vorrang."]

{"sheet":"Mitarbeiter","index":1,"n_rows":262,"n_cols":26,"rows_kept":262,"merged":[[1,1,1,22],[2,2,2,22],[3,4,3,17],[4,18,4,22],[6,2,6,22],[7,4,7,8],[8,3,8,22],[9,3,9,22],[10,3,10,22],[11,3,11,22],[12,16,12,22],[13,14,13,18],[14,4,14,8],[16,2,16,22],[17,4,17,8],[18,4,18,8],[19,4,19,8],[20,7,20,10],[23,6,23,10],[23,14,23,18],[24,16,24,22],[25,8,25,22],[27,2,27,22],[28,6,28,10],[28,18,28,20],[32,2,32,22],[33,4,33,6],[34,4,34,6],[34,12,34,14],[36,2,36,22],[37,6,37,10],[37,14,37,22],[38,3,38,22],[39,4,39,22],[40,4,40,22],[41,3,41,22],[43,2,43,22],[44,4,44,9],[45,4,45,7],[46,16,46,22],[47,4,47,6],[47,12,47,14],[48,2,49,2],[49,3,49,22],[50,3,50,22],[51,3,51,22],[52,3,52,22],[54,4,54,8],[55,4,55,8],[56,6,56,10],[57,6,57,10],[57,14,57,18],[58,2,58,22],[59,12,59,20],[60,3,60,22],[61,4,61,8],[61,18,61,20],[65,4,65,6],[65,8,65,10],[65,18,65,20],[70,4,70,7],[70,18,70,20],[73,10,73,16],[75,4,75,22],[76,4,76,22],[77,18,77,22],[78,18,78,22],[79,4,79,18],[80,4,80,22],[81,4,81,22],[82,3,82,22],[83,3,83,22],[84,4,84,7],[86,4,86,22],[87,6,87,14],[90,16,90,22],[91,20,91,22],[92,4,92,22],[93,14,93,22],[98,4,98,22],[102,2,105,2],[105,6,105,11],[105,13,105,18],[105,20,105,22],[108,4,108,22],[109,6,109,10],[111,14,111,22],[112,14,112,22],[114,19,114,22]]}
[]
[null,"MITARBEITER-STAMMDATEN \n(Nicht für Aushilfen und Studenten)",{"$nulls":22},"ROTES \nDreieck\n(rechts oben)","nach Klick auf Kästchen folgt Hinweis"]
[null,1,"ARBEITNEHMER",{"$nulls":21},"Beispiele"]
[null,"1.1.","Firma (laut Arbeitsvertrag) / Ihre Kundennummer:",{"$nulls":17},"Accountnr:",null,null,{"$f":"IF(OR(E4=\"\",W4=\"\"),\"r\",\"a\")","v":"r"},"Peter Mustermann GmbH / 1234"]
[null,null,"Arbeitsstätte:",{"$nulls":3},"Hauptsitz",{"$nulls":7},"Betriebsstätte:",{"$nulls":8},{"$f":"IF(AND(E5=\"\",OR(M5=\"\",S5=\"\")),\"r\",\"a\")","v":"r"},"Betriebsstätte: Hamburg"]
[]
[null,2,"PERSON"]
[null,"2.1.","Personal-Nummer (wenn vorgegeben):",{"$nulls":19},"keine Vorgabe",{"$f":"IF(AND(E8=\"\",U8=\"\"),\"r\",\"a\")","v":"r"},"Wenn Sie keine Personalnummer angeben, vergeben wir diese."]
[null,"2.2.","Name, Namenszusatz, Titel:",{"$nulls":20},{"$f":"IF(D9=\"\",\"r\",\"a\")","v":"r"},"Muster, von der, Dr."]
[null,null,"Vorname:",{"$nulls":20},{"$f":"IF(D10=\"\",\"r\",\"a\")","v":"r"},"Peter"]
[null,null,"Straße / Hausnummer:",{"$nulls":20},{"$f":"IF(D11=\"\",\"r\",\"a\")","v":"r"},"Magarethenplatz 11a"]
[null,null,"PLZ / Wohnort:",{"$nulls":20},{"$f":"IF(D12=\"\",\"r\",\"a\")","v":"r"},"80312 München"]
[null,null,"Land",{"$nulls":3},"Deutschland",{"$nulls":7},"anderes Land:"]
[null,null,"Geschlecht:",{"$nulls":3},"weiblich",{"$nulls":7},"männlich",{"$nulls":8},{"$f":"IF(AND(E14=\"\",M14=\"\"),\"r\",\"a\")","v":"r"}]
[null,null,"Geburtsdatum:",{"$nulls":20},{"$f":"IF(E15=\"\",\"r\",\"a\")","v":"r"},"--> Bitte entsprechend TT.MM.JJJJ eintragen."]
[]
[null,3,"ARBEITSVERHÄLTNIS"]
[null,"3.1.","Eintrittsdatum:",{"$nulls":20},{"$f":"IF(E18=\"\",\"r\",\"a\")","v":"r"},"Wann wurde die Arbeit aufgenommen?"]
[null,null,"Vertragsende / Austritt (Enddatum):",{"$nulls":11},"unbefristet",{"$nulls":9},"Wurde ein Enddatum im Arbeitsvertrag vereinbart?"]
[null,null,"Konzern-Eintritt (wenn unterbrochen)",{"$nulls":21},"Sind Zeiten aus Vorbeschäftigungen (z.B. beim Betriebsübergang) zu beachten?"]
[null,"3.2.","War das Arbeitsverhältnis von Beginn an befristet?",{"$nulls":3},"ja, bis",{"$nulls":15},"nein",{"$f":"IF(OR(AND(E21<>\"\",H21=\"\"),U21<>\"\"),\"r\",\"a\")","v":"a"},"Ist der Vertrag befristet abgeschlossen worden?"]
[null,"3.3.","Mitarbeitertyp (ggf. für Fibu-Aufteilung):",{"$nulls":3},"Angestellter",{"$nulls":7},"Arbeiter",{"$nulls":7},"Geschäftsführung",{"$f":"IF(AND(E22=\"\",U22=\"\",M22=\"\",E23=\"\",M23=\"\",U23=\"\"),\"r\",\"a\")","v":"r"},"--> Bitte entsprechend auswählen."]
[{"$nulls":6},"Auszubildender",{"$nulls":7},"Aushilfe",{"$nulls":7},"Betriebsrentner"]
[null,"3.4.","Abrechnungslauf (wenn vorhanden):",{"$nulls":3},"1. Lauf",{"$nulls":7},"2. Lauf",{"$nulls":7},"3. Lauf",null,"Bitte nur auswählen, wenn Sie zwei Abrechnungstermine haben."]
[null,"3.5.","Stamm-Kostenstelle (wenn vorhanden):",{"$nulls":3},"keine Kostenstelle",{"$nulls":7},"Kostenstelle:",{"$nulls":8},{"$f":"IF(AND(E25=\"\",Q25=\"\"),\"r\",\"a\")","v":"r"},"Kostenstelle: Verwaltung"]
[null,null,"prozentuale Aufteilung auf Kostenstellen:",{"$nulls":3},"ja",{"$nulls":16},{"$f":"IF(AND(E25=\"\",OR(E26=\"\",I26=\"\")),\"r\",\"a\")","v":"r"},"--> 1=50%; 2=25%; 3=25%"]
[null,null," "]
[null,4,"ARBEITSZEIT"]
[null,"4.1.","Wöchentliche Arbeitszeit:",{"$nulls":3},"Vollzeit",{"$nulls":7},"Teilzeit",{"$nulls":7},"Wochenstunden",{"$f":"IF(AND(OR(E29=\"\",M29=\"\"),S29=\"\"),\"r\",\"a\")","v":"r"},"--> Bitte entsprechend auswählen."]
[null,"4.2.","Verteilung der unter 4.1. genannten Wochenstunden",{"$nulls":3},"MO",{"$nulls":3},"DI",{"$nulls":3},"MI",{"$nulls":3},"DO",{"$nulls":3},"FR",{"$f":"IF(OR(S29=\"\",(E30+I30+M30+Q30+U30+E31+I31)+(M31*5)+(Q31*6)+(U31*7)<>S29),\"r\",\"a\")","v":"r"},"Mo: 8,5 / Di: 8,5 / Mi: 8,5 / Do: 8,5 / Fr: 6,0 = 40 Std/Woche"]
[{"$nulls":6},"SA",{"$nulls":3},"SO",{"$nulls":3},"MO-FR",{"$nulls":3},"MO-SA",{"$nulls":3},"MO-SO",null,"oder Mo-Fr: 8 = 40 Std/Woche"]
[]
[null,5,"URLAUBSTAGEVERWALTUNG (nur ausfüllen, wenn der Andruck auf dem Lohnschein gewünscht wird)"]
[null,"5.1.","Urlaubsanspruch (pro Kalenderjahr lt. Arbeitsvertrag):",{"$nulls":21},30]
[null,null,"Anteiliger Urlaub im lfd. Jahr :",{"$nulls":7},"Vorjahr:",{"$nulls":13},"Vorjahr = nur bei Neukunden / Umfirmierungen"]
[]
[null,6,"BANKVERBINDUNG"]
[null,"6.1.","Entgeltzahlung erfolgt als:",{"$nulls":3},"Überweisung",{"$nulls":7},"Barauszahlung / nur Auszahlungswerte",{"$nulls":8},{"$f":"IF(AND(E38=\"\",M38=\"\"),\"r\",\"a\")","v":"r"}]
[null,"6.2.","Bankname (wenn Überweisung, Zahlungsdatei oder EZV):",{"$nulls":20},{"$f":"IF(OR(AND($E$38=\"\",$M$38=\"\"),AND(E38<>\"\",D39=\"\")),\"r\",\"a\")","v":"r"},"Nord LB Braunschweig / Filiale Seesen"]
[null,null,"IBAN des AN:",null,"",{"$nulls":18},{"$f":"IF(OR(AND($E$38=\"\",$M$38=\"\"),AND($E$38<>\"\",LEN(SUBSTITUTE( E40,\" \",\"\"))<>22)),\"r\",\"a\")","v":"r"},"Bitte geben Sie die IBAN ohne Leerzeichen ein!"]
[null,null,"BIC des AN:",{"$nulls":20},{"$f":"IF(OR(AND($E$38=\"\",$M$38=\"\"),AND($E$38<>\"\",LEN(SUBSTITUTE( E41,\" \",\"\"))<>11)),\"r\",\"a\")","v":"r"},"Bitte geben Sie die BIC ohne Leerzeichen ein!"]
[null,null,"Konto-Inhaber (wenn abweichend zu 2.2.):",{"$nulls":21},"Ehegatte, etc."]
[]
[null,7,"ENTGELT"]
[null,"7.1.","Monatsentgelt (als feste monatliche Basis):",{"$nulls":11},"Nettolohnvereinbarung",{"$nulls":7},"1. Monat ungekürzt",{"$f":"IF(AND(E45=\"\",E46=\"\"),\"r\",\"a\")","v":"r"},{"v":2200,"d":"2,200.00"}]
[null,null,"oder Stundenlohn:",{"$nulls":20},{"$f":"IF(AND(E46=\"\",E45=\"\"),\"r\",\"a\")","v":"r"},"oder 18,00"]
[null,"7.2.","Tarifvereinbarung (Name):",{"$nulls":3},"ohne Tarifvertrag",{"$nulls":7},"Tarifvertrag:",{"$nulls":8},{"$f":"IF(AND(E47=\"\",Q47=\"\"),\"r\",\"a\")","v":"r"},"Metall NRW ERA"]
[null,null,"Entgeltgruppe (Vergütungs-, Lohngruppe) und Stufe:",{"$nulls":7},"Stufe:",{"$nulls":12},{"$f":"IF(AND(AND(E47=\"\"),OR(E48=\"\",M48=\"\")),\"r\",\"a\")","v":"r"},"EG7 / Hauptstufe"]
[null,"7.3.","Weitere vertragliche Entgeltbestandteile (z. B. Urlaubsgeld):",{"$nulls":3},"nein",{"$nulls":7},"ja (VL / Altersvorsorge bitte im Register \"Verträge\" eingegeben)",{"$nulls":8},{"$f":"IF(AND(E49=\"\",M49=\"\",D52=\"\",D53=\"\"),\"r\",\"a\")","v":"r"},"Bitte geben Sie alle vertraglichen Entgeltbestandteile an (auch Einmalzahlungen)."]
[{"$nulls":24},"Fahrgeld pauschalversteuert = € 50,00 / Zulage € 200,00"]
[]
[null,null,"Einmalzahlungen:",{"$nulls":21},"Urlaubsgeld im Juli € 200,00 / Weihnachtsgeld im Nov. € 500,00"]
[]
[null,"7.4.","Dienstwagen (1%- und 0,03%-Regelung)",{"$nulls":3},"kein Dienstwagen",{"$nulls":16},{"$f":"IF(AND(E54=\"\",OR(E55=\"\",U56=\"\"),OR(E56=\"\",AND(E57=\"\",M57=\"\"),AND(E58=\"\",M58=\"\",U58=\"\"))),\"r\",\"a\")","v":"r"}]
[null,null,"Bruttolistenpreis inkl. USt:",{"$nulls":21},{"v":15000,"d":"15,000 €"}]
[null,null,"Entfernung zwischen Wohnung und Arbeitsstätte:",{"$nulls":7},"Einfache Entfernung in km eintragen.",{"$nulls":11},"keine Arbeitsstätte",null,"Es werden nur volle Kilometer angeben (z.B. 7,7 km = 7 km). "]
[null,null,"Monatliche Fahrten zwischen Wohnung und Arbeitsstätte:",{"$nulls":3},"15 Tage (ohne Nachweis)",{"$nulls":7},"tatsächliche Fahrten (monatliche Übermittlung)"]
[null,null,"Übernahme der pauschalen Lohnsteuer:",{"$nulls":3},"keine",{"$nulls":7},"durch AN",{"$nulls":7},"durch AG"]
[null,8,"STEUER"]
[null,"8.1.","Steuer-ID des Arbeitnehmers:",{"$nulls":19},"Steuer-ID",{"$f":"IF(AND(M60=\"\",LEN(M60)<>11),\"r\",\"a\")","v":"r"},"Steuer-ID = 11stellige Nummer"]
[null,"8.2.","Vorabangaben:"]
[null,null,"Steuermerkmale:",null,"Lohnsteuerklasse",{"$nulls":11},"Kinderfreibetrag:",{"$nulls":6},{"$f":"IF(AND(K62=\"\",S62=\"\"),\"r\",\"a\")","v":"r"},"Alle Daten finden Sie auf der Lohnsteuerkarte/-abzugsbescheinigung"]
[{"$nulls":8},"Faktor (IV/IV):",{"$nulls":14},{"$f":"IF(AND(K63=\"\"),\"r\",\"a\")","v":"r"}]
[{"$nulls":8},"Konfession:",{"$nulls":7},"Konf. Ehegatte:",{"$nulls":6},{"$f":"IF(AND(K64=\"\",OR(K64=\"\",S64=\"\")),\"r\",\"a\")","v":"r"},"Vier/ 0,0"]
[null,null,"Frei-/Hinzurechnungsbetrag:",{"$nulls":3},"Freibetrag",{"$nulls":7},"Hinzurechnungsbetrag",{"$nulls":9},0.789]
[null,null,"eingetragener Betrag:",null,"monatlich:",{"$nulls":11},"jährlich:",{"$nulls":6},{"$f":"IF(AND(S66=\"\",K66=\"\"),\"r\",\"a\")","v":"r"},"ev / rk"]
[null,"8.3.","Befreiung vom Lohnsteuerabzug",{"$nulls":3},"DBA-Abkommen",{"$nulls":7}," Auslandstätigkeitserlass",{"$nulls":8},{"$f":"IF(AND(AND(E67=\"\",M67=\"\",#REF!=\"\"),Q13<>\"\"),\"r\",\"a\")","v":{"$error":"#REF!"}},"Die Bescheinigung erhalten Sie von Ihrem Betriebsstätten-Finanzamt"]
[null,"8.4.","Private Kranken- / Pflegeversicherung des AN:",{"$nulls":3},"nein",{"$nulls":3},"ja, Bescheinigung nach § 10 EStG beifügen",{"$nulls":12},{"$f":"IF(AND(E68=\"\",I68=\"\"),\"r\",\"a\")","v":"r"},"Erhält der Arbeitnehmer von seiner privaten Krankenversicherung"]
[null,"8.5.","Vorbeschäftigungen im laufenden Kalenderjahr:",{"$nulls":3},"Monate anderer AG",{"$nulls":7},"Kopie der Lohnsteuerbescheinigung liegt bei",{"$nulls":8},{"$f":"IF(AND(E69=\"\",M69=\"\"),\"r\",\"a\")","v":"r"},"5 = Mitarbeiter hat vom 01.02. bis 30.06. auf Steuerkarte gearbeitet"]
[null,"8.6.","Kostenfreie Sammelbeförderung durch den AG:",{"$nulls":3},"nein",{"$nulls":7},"ja, Sammeltransport liegt vor",{"$nulls":8},{"$f":"IF(AND(E70=\"\",M70=\"\"),\"r\",\"a\")","v":"r"}]
[null,"8.7.","Versorgungsbeginn (nur Versorgungsbezugsempfänger)",{"$nulls":13},"Höhe 1. Versorgungsbezug:",{"$nulls":6},{"$f":"IF(AND(U23<>\"\",E71=\"\",S71=\"\"),\"r\",\"a\")","v":"a"},"Zeitpunkt und Betrag der ersten Betriebsrente"]
[]
[null,9,"SOZIALVERSICHERUNG"]
[null,"9.1.","Sozialausweis / -versicherungs-Nummer (12stellig):",{"$nulls":3},"liegt nicht vor",{"$nulls":11},{"$f":"IF(AND(E74=\"\",LEN(K74)<>12),\"Dies ist keine gültige SV-Nummer\",\"\")","v":"Dies ist keine gültige SV-Nummer"},{"$nulls":4},{"$f":"IF(AND(E74=\"\",LEN(K74)<>12),\"r\",\"a\")","v":"r"},"Bitte geben Sie die 12stellige SV-Nummer ohne Leerzeichen ein!"]
[null,"9.1.1.","Geburtsdaten "]
[null,null,"Geburts-Ort:",{"$nulls":20},{"$f":"IF(AND(E74<>\"\",D76=\"\"),\"r\",\"a\")","v":"a"},"Madrid"]
[null,null,"Geburts-Name (wenn abweichend zu 2.2.):",{"$nulls":20},{"$f":"IF(AND(E74<>\"\",D77=\"\"),\"r\",\"a\")","v":"a"},"Petersen"]
[null,null,"Geburts-Land:",{"$nulls":3},"Deutschland",{"$nulls":9},"anderer Staat:",{"$nulls":6},{"$f":"IF(AND(E74<>\"\",AND(E78=\"\",S78=\"\")),\"r\",\"a\")","v":"a"},"Spanien"]
[null,"9.1.2.","Staatsangehörigkeit (Nationalität):",{"$nulls":3},"deutsch",{"$nulls":9},"andere Nationalität:",{"$nulls":6},{"$f":"IF(AND(E79=\"\",S79=\"\"),\"r\",\"a\")","v":"r"},"spanisch"]
[null,"9.2.","Personengruppen-Schlüssel (3stellig):",{"$nulls":21},"nur von Neukunden auszufüllen"]
[null,"9.3.","Tätigkeitsschlüssel"]
[null,null,"genaue Berufsbezeichnung (deutschsprachig):",{"$nulls":20},{"$f":"IF(AND(E80=\"\",D82=\"\"),\"r\",\"a\")","v":"r"},"Debitorenbuchhalter","Verzeichnis"]
[null,null,"Höchster allgemeinbildender Schulabschluss:",{"$nulls":20},{"$f":"IF(AND(E81=\"\",D83=\"\"),\"r\",\"a\")","v":"r"},"--> Bitte entsprechend auswählen."]
[null,null,"Höchster beruflicher Ausbildungsabschluss:",{"$nulls":20},{"$f":"IF(AND(E82=\"\",D84=\"\"),\"r\",\"a\")","v":"r"},"--> Bitte entsprechend auswählen."]
[null,"9.4.","Beitragsgruppen-Schlüssel (4stellig, z. B. 1111):",{"$nulls":21},"nur von Neukunden auszufüllen"]
[null,"9.5.","Statuskennzeichen (bei Neuanmeldung):",{"$nulls":3},"geschäftsf. Gesellsch.",{"$nulls":7},"Ehegatte d. AG",{"$nulls":7},"Kind des Arbeitgebers",null,"Liegt eine dieser Eigenschaften vor?"]
[null,"9.6.","Krankenkasse (gesetzlich):",{"$nulls":20},{"$f":"IF(D87=\"\",\"r\",\"a\")","v":"r"},"--> Bitte entsprechend auswählen."]
[{"$nulls":6},"ja, Mitgliedsbescheinigung beigefügt",{"$nulls":11},"nein, liegt nicht vor",{"$nulls":4},{"$f":"IF(AND(E88=\"\",Q88=\"\",D87<>\"\"),\"r\",\"a\")","v":"a"},"Wenn der Arbeitnehmer bereits seine Krankenkasse über das Arbeitsverhältnis informiert hat, erhalten Sie direkt von der Krankenkasse eine Mitgliedsbescheinigung."]
[null,"9.7.","Private Kranken- / Pflegeversicherung des AN:",{"$nulls":3},"nein",{"$nulls":3},"ja, Bescheinigung beif.",{"$nulls":7},"auch am 31.12.2002",{"$nulls":4},{"$f":"IF(AND(E89=\"\",I89=\"\"),\"r\",\"a\")","v":"r"},"Bitte prüfen Sie, ob hier Besonderheiten vorliegen."]
[null,"9.8.","Wegfall des Kinderlosenzuschlags (0,25% in der PV)",{"$nulls":3},"Nachweis der Elterneigenschaft",{"$nulls":11},"kein Nachweis der Elterneigenschaft",{"$nulls":4},{"$f":"IF(AND(E90=\"\",Q90=\"\"),\"r\",\"a\")","v":"r"},"Erwachsene Kinder werden auf der Lohnsteuerkarte nicht angegeben. Hier ist ein gesonderter Nachweis notwendig."]
[null,null,"Elterneigenschaft bescheinigt durch:",{"$nulls":3},"Geburtsurkunde",{"$nulls":7},"Sonstiger Nachweis:",{"$nulls":8},{"$f":"IF(AND(E91=\"\",Q91=\"\",Q90=\"\"),\"r\",\"a\")","v":"r"}]
[null,"9.9.","Versorgungswerk des AN:",{"$nulls":3},"nein",{"$nulls":3},"ja",{"$nulls":7},"Mitgliedsnummer:  ",{"$nulls":4},{"$f":"IF(AND(E92=\"\",OR(I92=\"\",U92=\"\")),\"r\",\"a\")","v":"r"},"Bei Fragen hilft Ihnen das Versorgungswerk"]
[null,null,"Name des Versorgungswerks:",{"$nulls":20},{"$f":"IF(AND(E92=\"\",D93=\"\"),\"r\",\"a\")","v":"r"}]
[null,null,"Zahlung der Beiträge:",{"$nulls":3},"Auszahlung an AN",{"$nulls":7},"Abführung an Versorgungswerk",{"$nulls":8},{"$f":"IF(AND(E94=\"\",M94=\"\",E92=\"\"),\"r\",\"a\")","v":"r"}]
[null,"9.10.","Übergangsbereich (zwischen 450,01 u. 1.300 Euro)",{"$nulls":3},"nein",{"$nulls":3},"ja",{"$nulls":12},{"$f":"IF(AND(E95=\"\",I95=\"\"),\"r\",\"a\")","v":"r"}]
[null,"9.11.","Freiwilliges soziales Jahr",{"$nulls":3},"nein",{"$nulls":3},"ja",{"$nulls":12},{"$f":"IF(AND(E96=\"\",I96=\"\"),\"r\",\"a\")","v":"r"}]
[]
[null,10,"BERUFSGENOSSENSCHAFT"]
[null,"10.1.","Strukturschlüssel / Bezeichnung:",{"$nulls":20},{"$f":"IF(D99=\"\",\"r\",\"a\")","v":"r"},"Haben Sie mehrere BG-Strukturschlüssel?"]
[]
[null,11,"BESCHÄFTIGUNGSVERHÄLTNISSE (zeitgleich weitere Arbeitgeber)"]
[null,"11.1.","Bestehen zeitgleich weitere Beschäftigungsverhältnisse?",{"$nulls":3},"nein (dann weiter mit 12.)",{"$nulls":11},"ja",{"$nulls":4},{"$f":"IF(AND(E102=\"\",Q102=\"\"),\"r\",\"a\")","v":"r"}]
[null,"11.2.","Angaben zu anderen / weiteren Beschäftigungen des AN (wegen der korrekten Ermittlung bzw. Beurteilung des Sozialversicherungsstatus)",{"$nulls":3},"KV-pflichtig",{"$nulls":11},"KV-freiwillig (Entgelt über JAE)",{"$nulls":4},{"$f":"IF(AND(Q102<>\"\",AND(Q103=\"\",E103=\"\",E104=\"\",Q104=\"\",E105=\"\",Q105=\"\",G106=\"\",U106=\"\")),\"r\",\"a\")","v":"a"}]
[{"$nulls":6},"Private Krankenversicherung",{"$nulls":11},"Mini-Job (bis 450 Euro)"]
[{"$nulls":6},"Selbstständig",{"$nulls":11},"Rentenbezieher"]
[{"$nulls":4},"seit:",{"$nulls":8},"Ø mtl. Brutto-Entgelt:",{"$nulls":9},{"$f":"IF(AND(Q102<>\"\",OR(G106=\"\",U106=\"\")),\"r\",\"a\")","v":"a"},"--> zwingend notwendig für die richtige SV-Berechnung (TT.MM.JJJJ/ Betrag)"]
[]
[null,12,"SONSTIGES"]
[null,null,"Leistungsgruppe Statistisches Landesamt",{"$nulls":21},"--> Bitte entsprechend auswählen."]
[null,null,"Schwerbehinderung des AN:",{"$nulls":3},"keine",{"$nulls":7},"ja (Kopie beigefügt)",{"$nulls":8},{"$f":"IF(AND(E110=\"\",M110=\"\"),\"r\",\"a\")","v":"r"}]
[null,null,"Pfändung/en (aktuell):",{"$nulls":3},"keine",{"$nulls":7},"ja (Kopie beigefügt)",{"$nulls":7},"Privatinsolvenz",{"$f":"IF(AND(E111=\"\",M111=\"\"),\"r\",\"a\")","v":"r"}]
[null,null,"Schul-Bescheinigung (Schüler):",{"$nulls":3},"nein",{"$nulls":7},"ja (Kopie beigefügt)",{"$nulls":8},{"$f":"IF(AND(E112=\"\",M112=\"\"),\"r\",\"a\")","v":"r"}]
[null,null,"Immatrikulations-Bescheinigung (Student):",{"$nulls":3},"keine",{"$nulls":7},"ja (Kopie beigefügt)",{"$nulls":8},{"$f":"IF(AND(E113=\"\",M113=\"\"),\"r\",\"a\")","v":"r"}]
[]
[null,13,"NICHT VERGESSEN (aufgrund Ihrer Eingaben benötigen wir diese Anlagen)",{"$nulls":16},"Vermerk lohndirekt"]
[null,null,"Steuer-ID (8.1.)",null,{"$f":"IF(M60<>\"\",\"X\",\"\")","v":""},null,"notwendig",{"$nulls":5},{"$f":"IF(E116=\"\",\"X\",\"\")","v":"X"},null,"nicht notwendig",{"$nulls":7},"erhalten"]
[null,null,"Bescheinigung § 10 EStG (8.4.)",null,{"$f":"IF(I68<>\"\",\"X\",\"\")","v":""},null,"notwendig",{"$nulls":5},"X",null,"nicht notwendig",{"$nulls":7},"erhalten"]
[null,null,"Lohnsteuerbescheinigung des Vorarbeitgebers (8.5.)",null,{"$f":"IF(M69<>\"\",\"X\",\"\")","v":""},null,"notwendig",{"$nulls":5},"X",null,"nicht notwendig",{"$nulls":7},"erhalten"]
[null,null,"Befreiung nach DBA oder ATE (8.3.)",null,{"$f":"IF(OR(E67<>\"\",M67<>\"\"),\"X\",\"\")","v":""},null,"notwendig",{"$nulls":5},"X",null,"nicht notwendig",{"$nulls":7},"erhalten"]
[null,null,"Mitgliedsschreiben der Krankenkasse (9.6.)",null,{"$f":"IF(E88<>\"\",\"X\",\"\")","v":""},null,"notwendig",{"$nulls":5},"X",null,"nicht notwendig",{"$nulls":7},"erhalten"]
[null,null,"Bescheinigung SGB V (9.7.)",null,{"$f":"IF(I89<>\"\",\"X\",\"\")","v":""},null,"notwendig",{"$nulls":5},"X",null,"nicht notwendig",{"$nulls":7},"erhalten"]
[null,null,"Nachweis Elterneigenschaft (9.9.)",null,{"$f":"IF(E90<>\"\",\"X\",\"\")","v":""},null,"notwendig",{"$nulls":5},"X",null,"nicht notwendig",{"$nulls":7},"erhalten"]
[null,null,"Mitgliedsschreiben des Versorgungswerkes (9.10.)",null,{"$f":"IF(I92<>\"\",\"X\",\"\")","v":""},null,"notwendig",{"$nulls":5},"X",null,"nicht notwendig",{"$nulls":7},"erhalten"]
[null,null,"Vereinbarung zur Gleitzone (9.11.)",null,{"$f":"IF(I96<>\"\",\"X\",\"\")","v":""},null,"notwendig",{"$nulls":5},"X",null,"nicht notwendig",{"$nulls":7},"erhalten"]
[null,null,"Schwerbehinderten-Ausweis / Gleichstellung (12.)",null,{"$f":"IF(M110<>\"\",\"X\",\"\")","v":""},null,"notwendig",{"$nulls":5},"X",null,"nicht notwendig",{"$nulls":7},"erhalten"]
[null,null,"Pfändungs- / Überweisungsbeschluss (12.)",null,{"$f":"IF(M111<>\"\",\"X\",\"\")","v":""},null,"notwendig",{"$nulls":5},"X",null,"nicht notwendig",{"$nulls":7},"erhalten"]
[null,null,"Schul-Bescheinigung (12.)",null,{"$f":"IF(M112<>\"\",\"X\",\"\")","v":""},null,"notwendig",{"$nulls":5},"X",null,"nicht notwendig",{"$nulls":7},"erhalten"]
[null,null,"Immatrikulations-Bescheinigung (12.)",null,{"$f":"IF(M112<>\"\",\"X\",\"\")","v":""},null,"notwendig",{"$nulls":5},{"$f":"IF(E128=\"\",\"X\",\"\")","v":"X"},null,"nicht notwendig",{"$nulls":7},"erhalten"]
[null,"für",{"$f":"CONCATENATE(E8,\" \",D9,\", \",D10)","v":" , "}]
[]
[null,null,"actimonda krankenkasse - 30165364",null,"X",null,"--",null,"EINS",null,{"v":0,"d":"0.0"},null,"Abstammungsurkunde",null,"101-sozialvers.-pfl. Beschäftigte",{"$nulls":3},"1 - Ohne Schulabschluss",{"$nulls":3},"1 - Ohne Beruflichen Ausbildungsabschluss",null,"1 - AN in leitender Stellung","Baden-Württembergische Versorgungsanstalt für Ärzte, Zahnärzte und Tierärzte"]
[null,null,"AOK Baden-Württemberg - 67450665",{"$nulls":3},"rk",null,"ZWEI",null,0.5,null,"Adoptionsurkunde ",null,"102-Auszubildende",{"$nulls":3},"2 - Haupt-/Volksschulabschluss",{"$nulls":3},"2 - Abschluss einer anerkannten Berufsausbildung",null,"2 - AN mit schwierigen bis komplexen Tätigkeiten","Baden-Württembergische Versorgungsanstalt für Ärzte, Zahnärzte und Tierärzte"]
[null,null,"AOK Baden-Württemberg 4. Umlage - 67450665",null,1,null,"ev",null,"DREI",null,{"$f":"K132+0.5","v":{"v":1,"d":"1.0"}},null,"Auszug aus dem Familienbuch oder Familienstammbuch ",null,"103-Beschäftigte in Altersteilzeit",{"$nulls":3},"3 - Mittlere Reife oder gleichwertiger Abschluss",{"$nulls":3},"3 - Meister-/Techniker- oder gleichwertiger Fachschulabschluss",null,"3 - AN mit schwierigen Fachtätig-keiten (mit abgeschl. Berufsausbildung)","Baden-Württembergische Versorgungsanstalt für Ärzte, Zahnärzte und Tierärzte"]
[null,null,"AOK Bayern - 87880235",null,2,null,"fa",null,"VIER",null,{"v":1,"d":"1.0"},null,"Auszug aus dem Geburtenbuch des Standesamtes ",null,"104-Hausgewerbetreibende",{"$nulls":3},"4 - Abitur/Fachabitur",{"$nulls":3},"4 - Bachelor",null,"4 - angelernte AN (Anlernzeit bis 2 Jahre)","Bayerische Ärzteversorgung"]
[null,null,"AOK Bayern 4. Umlage - 87880235",null,3,null,"lt",null,"FÜNF",null,1.5,null,"Bescheinigung über Bezug von Mutterschaftsgeld ",null,"105-Praktikanten",{"$nulls":3},"9 - Abschluss unbekannt",{"$nulls":3},"5 - Diplom/Magister/Master/Staatsexamen",null,"5 - ungelernte AN (Anlernzeit bis 3 Monate)","Bayerische Ärzteversorgung"]
[null,null,"AOK Bremen/Bremerhaven - 20012084",null,4,null,"rf",null,"SECHS",null,{"$f":"K135+0.5","v":{"v":2,"d":"2.0"}},null,"Einkommensteuerbescheid (Berücksichtigung eines Kinderfreibetrages)",null,"106-Werkstudenten",{"$nulls":7},"6 - Promotion",null,null,"Bayerische Ärzteversorgung"]
[null,null,"AOK Hessen - 45118687",null,5,null,"fr",{"$nulls":3},{"v":2,"d":"2.0"},null,"Erziehungsgeldbescheid ",null,"107-Behinderte Menschen in anerkannten Werkstätten",{"$nulls":7},"9- Abschluss unbekannt",null,null,"Versorgungswerk der Ärztekammer des Saarlandes"]
[null,null,"AOK Niedersachsen - 29720865",null,6,null,"ak",{"$nulls":3},2.5,null,"Feststellungsbescheid des Rentenversicherungsträgers, in dem Kindererziehungs-und Kinderberücksichtigungszeiten ausgewiesen sind",null,"108-Bezieher von Vorruhestandsgeld",{"$nulls":10},"Versorgungswerk der Ärztekammer des Saarlandes"]
[null,null,"AOK Nordost in Berlin - 90235319",null,7,null,"is",{"$nulls":3},{"$f":"K138+0.5","v":{"v":3,"d":"3.0"}},null,"Kindergeldbescheid der Bundesagentur für Arbeit (BA) oder des jeweiligen öffentl.-rechtl. Arbeitgebers bzw. Dienstherrn",null,"111-Personen in Einrichtungen der Jugendhilfe, Berufsbildungswerken",{"$nulls":10},"Sächsische Ärzteversorgung"]
[null,null,"AOK Nordost in Brandenburg - 1000126",null,8,null,"fb",{"$nulls":3},{"v":3,"d":"3.0"},null,"Kontoauszug, aus dem sich die Auszahlung des Kindergeldes durch die BA-Familienkasse ergibt",null,"112-Mitarbeitende Familienangehörige in der Landwirtschaft",{"$nulls":10},"Sächsische Ärzteversorgung"]
[null,null,"AOK Nordost in Mecklenburg-Vorpommern - 1000080",null,9,null,"ib",{"$nulls":3},3.5,null,"Lohnsteuerkarte (Eintrag eines Kinderfreibetrages) ",null,"113-Nebenerwerbslandwirte",{"$nulls":10},"Berliner Ärzteversorgung"]
[null,null,"AOK NordWest  - 33526082",null,10,null,"fg",{"$nulls":3},{"$f":"K141+0.5","v":{"v":4,"d":"4.0"}},null,"Nachweis der Inanspruchnahme von Elternzeit nach dem Bundeserziehungsgeldgesetz (BerzGG) ",null,"114-Nebenerwerbslandwirte - saisonal beschäftigt",{"$nulls":10},"Ärzteversorgung Land Brandenburg"]
[null,null,"AOK PLUS in Sachsen - 5174740",null,11,null,"fm",{"$nulls":3},{"v":4,"d":"4.0"},null,"Sterbeurkunde des Kindes ",null,"116-Ausgleichsgeldempfänger nach dem FELEG",{"$nulls":10},"Versorgungswerk der Ärztekammer Bremen"]
[null,null,"AOK PLUS in Thüringen - 1000159",{"$nulls":3},"fs",{"$nulls":3},4.5,null,"steuerliche Lebensbescheinigung des Einwohnermeldeamtes",null,"118-Unständig Beschäftigte",{"$nulls":10},"Versorgungswerk der Ärztekammer Hamburg"]
[null,null,"AOK Rheinland / Hamburg - 34364249",{"$nulls":3},"ibw",{"$nulls":3},{"$f":"K144+0.5","v":{"v":5,"d":"5.0"}},null,"Vaterschaftsanerkennungs- und Vaterschaftsfeststellungsurkunde ",null,"119-Versicherungsfreie Altersvollrentner und Versorgungsbezieher wg Alters",{"$nulls":10},"Versorgungswerk der Landesärztekammer Hessen"]
[null,null,"AOK Rheinland-Pfalz/Saarland - 51605725",{"$nulls":3},"iw",{"$nulls":3},{"v":5,"d":"5.0"},{"$nulls":3},"121-Auszubildende, unter Geringverdienergrenze",{"$nulls":10},"Versorgungseinrichtung der Bezirksärztekammer Koblenz"]
[null,null,"AOK Rheinland-Pfalz/Saarland 4. Umlage - 51605725",{"$nulls":3},"jd",{"$nulls":3},5.5,{"$nulls":3},"122-Auszubildende in einer außerbetrieblichen Einrichtung",{"$nulls":10},"Ärzteversorgung Mecklenburg-Vorpommern"]
[null,null,"AOK Sachsen-Anhalt - 1029141",{"$nulls":3},"il",{"$nulls":3},{"$f":"K147+0.5","v":{"v":6,"d":"6.0"}},{"$nulls":3},"123-Personen, die ein freiwilliges soziales oder ökologisches Jahr leisten",{"$nulls":10},"Ärzteversorgung Niedersachsen"]
[null,null,"atlas BKK ahlmann - 20156113",{"$nulls":3},"jh",{"$nulls":7},"124-Heimarbeiter ohne Anspruch auf Entgeltfortzahlung",{"$nulls":10},"Nordrheinische Ärzteversorgung"]
[null,null,"Audi BKK - 82889062",{"$nulls":11},"127-Arbeitnehmer in Integrationsprojekten",{"$nulls":10},"Ärzteversorgung Sachsen-Anhalt"]
[null,null,"Audi BKK Ost - 1083422",{"$nulls":11},"140-Seeleute",{"$nulls":10},"Versorgungseinrichtung der Ärztekammer Schleswig-Holstein"]
[null,null,"Augenoptiker Ausgleichskasse VVag - 33868451",{"$nulls":11},"141-Auszubildende in der Seefahrt",{"$nulls":10},"Ärzteversorgung Thüringen"]
[null,null,"Bahn-BKK Rechtskreis West - 49003443",{"$nulls":11},"142-Seeleute in Altersteilzeit",{"$nulls":10},"Versorgungseinrichtung der Bezirksärztekammer Trier"]
[null,null,"BARMER - 42938966",{"$nulls":11},"143-Seelotsen",{"$nulls":10},"Ärzteversorgung Westfalen-Lippe"]
[null,null,"Bertelsmann BKK - 31323584",{"$nulls":11},"144-Auszubildende in der Seefahrt, unter Geringverdienergrenze",{"$nulls":10},"Versorgungswerk der Zahnärztekammer Berlin"]
[null,null,"BIG direkt gesund - 97141402",{"$nulls":11},"149-Versicherungsfreie Altersvollrentner in Seefahrt",{"$nulls":10},"Versorgungswerk der Zahnärztekammer Hamburg"]
[null,null,"BKK 24 - 23709856",{"$nulls":11},"190-Beschäftigte, die ausschließlich in der gesetzlichen Unfallversicherung versichert sind",{"$nulls":10},"Hessische Zahnärzte-Versorgung"]
[null,null,"BKK Achenbach Buschhütten - 41378433",{"$nulls":11},"901-sv-freier Gesellschafter/Geschäftsführer",{"$nulls":10},"Versorgungswerk der Zahnärztekammer Mecklenburg-Vorpommern"]
[null,null,"BKK AESCULAP - 66458503",{"$nulls":11},"902-Studenten mit Besitzstandswahrung",{"$nulls":10},"Altersversorgungswerk der Zahnärztekammer Niedersachsen"]
[null,null,"BKK Akzo Nobel Obernburg - 71579930",{"$nulls":11},"903-Beamte",{"$nulls":10},"Versorgungswerk der Zahnärztekammer Nordrhein"]
[null,null,"BKK B.Braun Melsungen AG - 47034975",{"$nulls":11},"904-Betriebsrentner (nur Versorgungsbezüge)",{"$nulls":10},"Versorgungsanstalt bei der Landeszahnärztekammer Rheinland-Pfalz"]
[null,null,"BKK BMW Zentrale - 87271125",{"$nulls":11},"905-Zivildienstleistende",{"$nulls":10},"Zahnärzteversorgung Sachsen"]
[null,null,"BKK BPW Wiehl - 30980327",{"$nulls":11},"906-Beamte in ATZ",{"$nulls":10},"Altersversorgungswerk der Zahnärztekammer Sachsen-Anhalt"]
[null,null,"BKK der Energieversorgung Mittelrhein - 51980490",{"$nulls":11},"907-Beschäftigte während ALG II (1 Euro Jobs)",{"$nulls":10},"Versorgungswerk der Zahnärztekammer Schleswig-Holstein"]
[null,null,"BKK Deutsche Bank AG - 34401277",{"$nulls":11},"920-sonstige sozialvers.-freie Beschäftigte",{"$nulls":10},"Versorgungswerk der Landeszahnärztekammer Thüringen"]
[null,null,"BKK Diakonie - 31323686",{"$nulls":22},"Versorgungswerk der Landeszahnärztekammer Westfalen-Lippe"]
[null,null,"BKK Dürkopp Adler - 31323799",{"$nulls":22},"Versorgungswerk der Landestierärztekammer Hessen"]
[null,null,"BKK Euregio - 30168049",{"$nulls":22},"Versorgungswerk der Landestierärztekammer Mecklenburg-Vorpommern"]
[null,null,"BKK EWE - 26515319",{"$nulls":22},"Tierärzteversorgung Niedersachsen"]
[null,null,"BKK exklusiv - 22178373",{"$nulls":22},"Versorgungswerk der Tierärztekammer Nordrhein"]
[null,null,"BKK Faber-Castell & Partner - 86772584",{"$nulls":22},"Versorgungswerk der Landestierärztekammer Thüringen"]
[null,null,"BKK firmus - 20156168",{"$nulls":22},"Versorgungswerk der Tierärztekammer Westfalen-Lippe"]
[null,null,"BKK Freudenberg - 63922962",{"$nulls":22},"Bayerische Apothekerversorgung"]
[null,null,"BKK Gesundheit - 48698890",{"$nulls":22},"Apothekerversorgung Berlin"]
[null,null,"BKK Gildemeister Seidensticker - 31323802",{"$nulls":22},"Versorgungswerk der Landesapothekerkammer Hessen"]
[null,null,"BKK Grillo-Werke - 35087667",{"$nulls":22},"Apothekerversorgung Mecklenburg-Vorpommern"]
[null,null,"BKK Groz-Beckert - 60393261",{"$nulls":22},"Apothekerversorgung Niedersachsen "]
[null,null,"BKK Henschel Plus - 47034920",{"$nulls":22},"Versorgungswerk der Apothekerkammer Nordrhein"]
[null,null,"BKK Herford Minden Ravensberg - 36916980",{"$nulls":22},"Sächsisch-Thüringische Apothekerversorgung"]
[null,null,"BKK Herkules - 47034953",{"$nulls":22},"Apothekerversorgung Schleswig-Holstein"]
[null,null,"BKK Karl Mayer - 48063096",{"$nulls":22},"Versorgungswerk der Apothekerkammer Westfalen-Lippe"]
[null,null,"BKK KBA/West - 75925585",{"$nulls":22},"Versorgungswerk der Architektenkammer Baden-Württemberg"]
[null,null,"BKK Linde - 48698889",{"$nulls":22},"Bayerische Architektenversorgung"]
[null,null,"BKK MAHLE - 67572537",{"$nulls":22},"Versorgungswerk der Architektenkammer Berlin"]
[null,null,"BKK Melitta Plus - 36916935",{"$nulls":22},"Architektenversorgung Nordrhein-Westfalen"]
[null,null,"BKK MEM - 1085106",{"$nulls":22},"Versorgungswerk der Architektenkammer Sachsen"]
[null,null,"BKK Miele - 31323700",{"$nulls":22},"Versorgungswerk der Rechtsanwälte in Baden-Württemberg"]
[null,null,"BKK MOBIL OIL - 15517302",{"$nulls":22},"Bayerische Rechtsanwalts- und Steuerberaterversorgung"]
[null,null,"BKK MTU Friedrichshafen - 65710574",{"$nulls":22},"Bayerische Rechtsanwalts- und Steuerberaterversorgung"]
[null,null,"BKK PFAFF - 51588416",{"$nulls":22},"Versorgungswerk der Rechtsanwälte im Land Brandenburg"]
[null,null,"BKK Pfalz - 52598579",{"$nulls":22},"Versorgungswerk der Rechtsanwälte im Lande Hessen"]
[null,null,"BKK ProVita - 88571250",{"$nulls":22},"Versorgungswerk der Rechtsanwälte in Mecklenburg-Vorpommern"]
[null,null,"BKK Public - 21488086",{"$nulls":22},"Rechtsanwaltsversorgung Niedersachsen"]
[null,null,"BKK PwC - 47307817",{"$nulls":22},"Versorgungswerk der Rechtsanwälte im Lande Nordrhein-Westfalen"]
[null,null,"BKK Rieker.Ricosta.Weisser - 66626976",{"$nulls":22},"Versorgungswerk der rheinland-pfälzischen Rechtsanwaltskammern"]
[null,null,"BKK RWE - 16665321",{"$nulls":22},"Versorgungswerk der Rechtsanwaltskammer des Saarlandes"]
[null,null,"BKK Salzgitter - 21203214",{"$nulls":22},"Sächsisches Rechtsanwaltsversorgungswerk"]
[null,null,"BKK Scheufelen - 61232758",{"$nulls":22},"Schleswig-Holsteinisches Versorgungswerk für Rechtsanwälte"]
[null,null,"BKK Schwarzwald-Baar-Heuberg - 66614249",{"$nulls":22},"Notarversorgungswerk Hamburg"]
[null,null,"BKK Stadt Augsburg - 81211334",{"$nulls":22},"Notarversorgungskasse Koblenz"]
[null,null,"BKK Technoform - 23446040",{"$nulls":22},"Notarversorgungswerk Köln"]
[null,null,"BKK Textilgruppe Hof - 73170269",{"$nulls":22},"Versorgungswerk der Saarländischen Notarkammer"]
[null,null,"BKK VDN - 37416328",{"$nulls":22},"Versorgungswerk der Steuerberater/-innen und Wirtschaftsprüfer/-innen im Saarland"]
[null,null,"BKK VerbundPlus - 69785429",{"$nulls":22},"Versorgungswerk der Steuerberater/-innen und Wirtschaftsprüfer/-innen im Saarland"]
[null,null,"BKK Verkehrsbau Union - 92644250",{"$nulls":22},"WPV Versorgungswerk der Wirtschaftsprüfer und vereid. Buchprüfer im Lande NRW"]
[null,null,"BKK Vital - 52654083",{"$nulls":22},"Versorgungswerk der Rechtsanwälte in Thüringen"]
[null,null,"BKK Voralb - 97352653",{"$nulls":22},"Versorgungswerk der Steuerberater im Land Nordrhein-Westfalen"]
[null,null,"BKK Werra-Meissner - 44037562",{"$nulls":22},"Versorgungswerk der Steuerberater in Baden-Württemberg"]
[null,null,"BKK Wirtschaft & Finanzen - 46967693",{"$nulls":22},"Hanseatische Rechtsanwaltsversorgung Bremen"]
[null,null,"BKK Würth - 67161380",{"$nulls":22},"Versorgungswerk der Steuerberater/-innen im Land Schleswig-Holstein"]
[null,null,"BKK ZF & Partner  - 69753266",{"$nulls":22},"Versorgungswerk der Rechtsanwälte in Berlin"]
[null,null,"BOSCH BKK - 67572593",{"$nulls":22},"Versorgungswerk der Steuerberater u. -bevollm. im Freistaat Sachsen"]
[null,null,"Brandenburgische BKK - 1017272",{"$nulls":22},"Versorgungswerk der Steuerberater u. -bevollm. im Land Niedersachsen"]
[null,null,"Continentale BKK - 33865367",{"$nulls":22},"Versorgungswerk der Steuerberater u. -bevollm. in Mecklenburg-Vorpommern"]
[null,null,"Daimler BKK - 68216980",{"$nulls":22},"Versorgungswerk der Steuerberater/-innen in Rheinland-Pfalz"]
[null,null,"DAK-Gesundheit - 15035218",{"$nulls":22},"Versorgungswerk der Rechtsanwältinnen und Rechtsanwälte i. Hamburg"]
[null,null,"DAK-Gesundheit 4. Umlage - 15035218",{"$nulls":22},"Versorgungswerk der Steuerberater in Hessen"]
[null,null,"Debeka BKK - 52156763",{"$nulls":22},"Versorgungswerk der Steuerberater u. -bevollm. im Land Brandenburg"]
[null,null,"Die Bergische Krankenkasse - 42039708",{"$nulls":22},"Versorgungswerk der Psychotherapeutenkammer Nordrhein-Westfalen"]
[null,null,"Die Schwenninger Krankenkasse - 66458477",{"$nulls":22},"Versorgungswerk der Psychotherapeutenkammer Schleswig-Holstein"]
[null,null,"energie-BKK - 29717581",{"$nulls":22},"Versorgungswerk der Rechtsanwälte in Sachsen-Anhalt"]
[null,null,"Ernst & Young BKK - 46939789",{"$nulls":22},"Versorgungswerk der Steuerberaterinnen, Steuerberater und Steuerbevollmächtigten in Sachsen-Anhalt"]
[null,null,"Hanseatische Krankenkasse - 15031806",{"$nulls":22},"Ingenieurversorgung  Mecklenburg-Vorpommern"]
[null,null,"Heimat Krankenkasse - 31209131",{"$nulls":22},"Ingenieurversorgung Baden-Württemberg"]
[null,null,"hkk - 20013461",{"$nulls":22},"Psychotherapeutenversorgungswerk"]
[null,null,"IKK Brandenburg u. Berlin Ost - 1020803",{"$nulls":22},"Versorgungswerk der Ingenieurkammer Niedersachsen"]
[null,null,"IKK classic - 1049203",{"$nulls":22},"Bayerische Ingenieurversorgung-Bau mit Psychotherapeutenversorgung"]
[null,null,"IKK gesund plus (Ost) - 1000455",{"$nulls":22},"Bayerische Ingenieurversorgung-Bau mit Psychotherapeutenversorgung"]
[null,null,"IKK Nord Rechtskreis West - 14228571"]
[null,null,"IKK Südwest - 55811201"]
[null,null,"KKH Kaufmännische Krankenkasse - 29137937"]
[null,null,"Knappschaft (Minijobzentrale) - 98000006"]
[null,null,"Knappschaft Hauptverwaltung - 98000006"]
[null,null,"Krones BKK - 74157435"]
[null,null,"LKK Baden-Württemberg - 67574619"]
[null,null,"LKK Franken und Oberbayern - 72360029"]
[null,null,"LKK Hessen, Rheinland-Pfalz und Saarland - 47068420"]
[null,null,"LKK Mittel- und Ostdeutschland - 1000308"]
[null,null,"LKK Niederbayern/Oberpfalz und Schwaben - 87119868"]
[null,null,"LKK Niedersachsen-Bremen - 29147110"]
[null,null,"LKK Nordrhein-Westfalen - 39873587"]
[null,null,"LKK Schleswig-Holstein und Hamburg - 13199426"]
[null,null,"Merck BKK - 44377882"]
[null,null,"Metzinger BKK - 66105948"]
[null,null,"mhplus BKK - 63494759"]
[null,null,"Novitas BKK - 35134022"]
[null,null,"pronova BKK - 15872672"]
[null,null,"R+V BKK - 48944809"]
[null,null,"Salus BKK - 44953697"]
[null,null,"SBK HV West - 87954699"]
[null,null,"SECURVITA BKK - 15517482"]
[null,null,"SIEMAG BKK - 41378558"]
[null,null,"SKD BKK - 74773896"]
[null,null,"Südzucker-BKK - 62332660"]
[null,null,"SVLFG, Landwirtschaftliche Krankenkasse Ost - 1000650"]
[null,null,"SVLFG, Landwirtschaftliche Krankenkasse West - 47069693"]
[null,null,"Techniker Krankenkasse - 15027365"]
[null,null,"Thüringer Betriebskrankenkasse - 1068979"]
[null,null,"TUI BKK - 29074470"]
[null,null,"VIACTIV - 40180080"]
[null,null,"Wieland BKK - 68659646"]
[null,null,"WMF BKK - 61232769"]

{"sheet":"Aushilfen","index":2,"n_rows":239,"n_cols":26,"rows_kept":239,"merged":[[1,1,1,22],[2,2,2,22],[3,4,3,17],[4,18,4,22],[5,2,5,22],[6,3,6,12],[7,3,7,22],[8,3,8,22],[9,3,9,22],[10,3,10,22],[11,16,11,22],[12,6,12,10],[12,14,12,18],[13,4,13,9],[13,10,13,22],[14,2,14,22],[15,4,15,7],[15,8,15,10],[15,12,15,17],[15,18,15,22],[16,6,16,10],[17,3,17,18],[18,2,18,22],[19,4,19,7],[19,8,19,10],[19,12,19,17],[19,18,19,22],[22,2,22,22],[23,6,23,10],[23,14,23,22],[24,3,24,22],[25,4,25,22],[26,4,26,22],[27,3,27,22],[28,2,28,22],[29,4,29,7],[29,8,29,10],[29,12,29,17],[29,18,29,22],[30,4,30,22],[32,2,32,22],[34,6,34,10],[34,14,34,18],[34,19,34,22],[35,4,35,12],[36,3,36,22],[37,4,37,8],[37,18,37,20],[39,14,39,22],[40,4,40,6],[40,8,40,10],[40,18,40,20],[41,2,41,22],[42,10,42,16],[43,3,43,22],[44,3,44,22],[45,3,45,22],[46,18,46,22],[47,3,47,22],[48,3,48,22],[49,3,49,22],[50,3,50,22],[51,18,51,22],[52,3,52,22],[57,2,57,22],[58,3,58,22],[59,2,59,22],[62,3,62,22],[63,2,63,22],[64,6,64,12],[65,2,68,2],[65,6,65,12],[66,6,66,12],[68,6,68,11],[68,13,68,18],[68,20,68,22]]}
[]
[null,"MITARBEITER-STAMMDATEN\nfür geringfügig oder kurzfristig Beschäftigte oder Studenten",{"$nulls":22},"ROTES Dreieck (rechts oben)","nach Klick auf Kästchen folgt Hinweis"]
[null,1,"ARBEITGEBER DES ARBEITNEHMERS",{"$nulls":21},"Beispiele"]
[null,"1.1.","Firma (laut Arbeitsvertrag) / Ihre Kundennummer:",{"$nulls":17},"Accountnr:",null,null,{"$f":"IF(OR(E4=\"\",W4=\"\"),\"r\",\"a\")","v":"r"},"Peter Mustermann GmbH / 1234"]
[null,null,"Arbeitsstätte:",{"$nulls":3},"Hauptsitz",{"$nulls":7},"Betriebsstätte:",{"$nulls":8},{"$f":"IF(AND(E5=\"\",OR(M5=\"\",S5=\"\")),\"r\",\"a\")","v":"r"},"Betriebsstätte: Hamburg"]
[null,2,"PERSON"]
[null,"2.1.","Personal-Nummer (wenn vorgegeben):",{"$nulls":19},"keine Vorgabe",{"$f":"IF(AND(D7=\"\",U7=\"\"),\"r\",\"a\")","v":"r"},122,"ODER --> entsprechend auswählen."]
[null,"2.2.","Name, Namenszusatz, Titel:",{"$nulls":20},{"$f":"IF(D8=\"\",\"r\",\"a\")","v":"r"},"Bond"]
[null,null,"Vorname:",{"$nulls":20},{"$f":"IF(D9=\"\",\"r\",\"a\")","v":"r"},"Peter"]
[null,null,"Straße / Hausnummer:",{"$nulls":20},{"$f":"IF(D10=\"\",\"r\",\"a\")","v":"r"},"Magarethenplatz 11 a"]
[null,null,"PLZ / Wohnort:",{"$nulls":20},{"$f":"IF(D11=\"\",\"r\",\"a\")","v":"r"},"80312 München"]
[null,null,"Land",{"$nulls":3},"Deutschland",{"$nulls":7},"anderes Land:"]
[null,null,"Geschlecht:",{"$nulls":3},"weiblich",{"$nulls":7},"männlich",{"$nulls":8},{"$f":"IF(AND(E13=\"\",M13=\"\"),\"r\",\"a\")","v":"r"},"--> Bitte entsprechend auswählen."]
[null,null,"Geburtsdatum:",{"$nulls":20},{"$f":"IF(E14=\"\",\"r\",\"a\")","v":"r"},"--> Bitte Geburtsdatum eintragen."]
[null,3,"ARBEITSVERHÄLTNIS"]
[null,"3.1.","Eintrittsdatum:",{"$nulls":5},"  Eintritt",{"$nulls":9},"  Austrittsdatum",{"$nulls":4},{"$f":"IF(E16=\"\",\"r\",\"a\")","v":"r"},"01.07.2010 / 31.09.2012"]
[null,"3.2.","Mitarbeitertyp (ggf. für Fibu-Aufteilung):",{"$nulls":3},"kaufmännisch",{"$nulls":7},"gewerblich",{"$nulls":8},{"$f":"IF(AND(E17=\"\",M17=\"\"),\"r\",\"a\")","v":"r"},"--> Bitte entsprechend auswählen."]
[null,"3.3.","Stamm-Kostenstelle (wenn vorhanden):",{"$nulls":19},"keine Kostenstelle",{"$f":"IF(AND(D18=\"\",U18=\"\"),\"r\",\"a\")","v":"r"},1002,"ODER --> entsprechend auswählen."]
[null,4,"ARBEITSZEIT"]
[null,"4.1.","Wochenstundenzahl:",{"$nulls":20},{"$f":"IF(E20=\"\",\"r\",\"a\")","v":"r"},40]
[null,"4.2.","Verteilung der unter 4.1. genannten Wochenstunden",{"$nulls":3},"Mo",{"$nulls":3},"Di",{"$nulls":3},"Mi",{"$nulls":3},"Do",{"$nulls":3},"Fr",{"$f":"IF(OR(E20=\"\",(E21+I21+M21+Q21+U21+E22+I22)+(M22*5)+(Q22*6)+(U22*7)<>E20),\"r\",\"a\")","v":"r"},"Mo: 8,5 / Di: 8,5 / Mi: 8,5 / Do: 8,5 / Fr: 6,0 = 40 Std/Woche"]
[{"$nulls":6},"Sa",{"$nulls":3},"So",{"$nulls":3},"Mo - Fr",{"$nulls":3},"Mo - Sa",{"$nulls":3},"Mo - So",null,"oder Mo-Fr: 8 = 40 Std/Woche"]
[null,5,"BANKVERBINDUNG"]
[null,"5.1.","Entgeltzahlung erfolgt als:",{"$nulls":3},"Überweisung",{"$nulls":7},"Barauszahlung / nur Auszahlungswerte",{"$nulls":8},{"$f":"IF(AND(E24=\"\",M24=\"\"),\"r\",\"a\")","v":"r"}]
[null,"5.2.","Bankname (wenn Überweisung, Zahlungsdatei oder EZV):",{"$nulls":20},{"$f":"IF(OR(AND($E$37=\"\",$M$37=\"\"),AND(E24<>\"\",D25=\"\")),\"r\",\"a\")","v":"r"},"Nord LB Braunschweig / Filiale Seesen"]
[null,null,"IBAN des AN:",null,"",{"$nulls":18},{"$f":"IF(OR(AND($E$37=\"\",$M$37=\"\"),AND($E$37<>\"\",LEN(SUBSTITUTE( E26,\" \",\"\"))<>22)),\"r\",\"a\")","v":"r"},"Bitte geben Sie die IBAN ohne Leerzeichen ein!"]
[null,null,"BIC des AN:",{"$nulls":20},{"$f":"IF(OR(AND($E$37=\"\",$M$37=\"\"),AND($E$37<>\"\",LEN(SUBSTITUTE( E27,\" \",\"\"))<>11)),\"r\",\"a\")","v":"r"},"Bitte geben Sie die BIC ohne Leerzeichen ein!"]
[null,null,"Konto-Inhaber (wenn abweichend zu 2.2.):",{"$nulls":21},"Ehegatte, etc."]
[null,6,"ENTGELT"]
[null,"6.1.","Aushilfsentgelt oder Stundenlohn",{"$nulls":5},"Festbetrag",{"$nulls":9},"Stundenlohn",{"$nulls":4},{"$f":"IF(AND(E30=\"\",M30=\"\"),\"r\",\"a\")","v":"r"},"400,00 EUR oder 8,00 EUR"]
[null,"6.2.","Weitere vertragliche Entgeltbestandteile (z. B. Fahrgeld):",{"$nulls":20},{"$f":"IF(E31=\"\",\"r\",\"a\")","v":"r"},"Bitte geben Sie alle vertraglichen Entgeltbestandteile an (auch Einmalzahlungen)."]
[null,null,"Verträge vorhanden",{"$nulls":3},"nein",{"$nulls":7},"ja, unter Register \"Verträge\" eingegeben",{"$nulls":8},{"$f":"IF(AND(E32=\"\",M32=\"\"),\"r\",\"a\")","v":"r"}]
[null,7,"STEUER"]
[null,"7.1.","Pauschalierung ",{"$nulls":3},"ja (Pauschalversteuerung)",{"$nulls":11},"nein (ELStAM)",{"$nulls":4},{"$f":"IF(AND(E34=\"\",Q34=\"\"),\"r\",\"a\")","v":"r"}]
[null,null,"wenn Pauschalversteuerung, wer trägt die Steuer?",{"$nulls":3},"Arbeitgeber",{"$nulls":7},"Arbeitnehmer"]
[{"$nulls":14},"Steuer-ID",{"$nulls":8},{"$f":"IF(AND(E36=\"\"),\"r\",\"a\")","v":"r"}]
[null,"7.2.","Vorabangaben:"]
[null,null,"Steuer-Daten:",null,"LSt-Klasse:",{"$nulls":11},"Kinderfreibetrag:",{"$nulls":6},{"$f":"IF(AND(E34=\"\",OR(K38=\"\",S38=\"\")),\"r\",\"a\")","v":"r"},"EINS / 0,0"]
[{"$nulls":8},"Konfession:",{"$nulls":7},"Konf. Ehegatte:",{"$nulls":6},{"$f":"IF(AND(E34=\"\",K39=\"\"),\"r\",\"a\")","v":"r"},"ev / rk"]
[null,null,"Freibetrag / Hinzurechnungsbetrag (laut LSt-Karte):",{"$nulls":3},"Freibetrag",{"$nulls":7},"Hinzurechnungsbetrag"]
[null,null,"eingetragener Betrag:",null,"monatlich:",{"$nulls":11},"jährlich:",{"$nulls":6},{"$f":"IF(AND(E34=\"\",I41=\"\",S41=\"\",OR(E40<>\"\",M40<>\"\")),\"r\",\"a\")","v":"a"}]
[null,8," SOZIALVERSICHERUNG"]
[null,"8.1.","Sozialausweis / -versicherungs-Nummer (12stellig):",{"$nulls":3},"liegt nicht vor",{"$nulls":11},{"$f":"IF(AND(LEN(K43)<>12,E43=\"\"),\"Dies ist keine gültige SV-Nummer\",\"\")","v":"Dies ist keine gültige SV-Nummer"},{"$nulls":4},{"$f":"IF(AND(E43=\"\",LEN(K43)<>12),\"r\",\"a\")","v":"r"},"Bitte geben Sie die 12stellige SV-Nummer ohne Leerzeichen eingeben!"]
[null,"8.2.","Geburtsdaten "]
[null,null,"Geburts-Ort:",{"$nulls":20},{"$f":"IF(AND(E43<>\"\",D45=\"\"),\"r\",\"a\")","v":"a"},"Madrid"]
[null,null,"Geburts-Name (wenn abweichend zu 2.2.):",{"$nulls":20},{"$f":"IF(AND(E43<>\"\",D46=\"\"),\"r\",\"a\")","v":"a"},"Petersen"]
[null,null,"Geburts-Land:",{"$nulls":3},"Deutschland",{"$nulls":9},"anderer Staat:",{"$nulls":6},{"$f":"IF(AND(E43<>\"\",AND(E47=\"\",S47=\"\")),\"r\",\"a\")","v":"a"},"Spanien"]
[null,"8.3.","Tätigkeits-Schlüssel (oder Tätigkeits-Bezeichnung):",{"$nulls":20},{"$f":"IF(AND(E46=\"\",D48=\"\"),\"r\",\"a\")","v":"r"}]
[null,null,"Berufsbezeichnung (deutschsprachig):",{"$nulls":20},{"$f":"IF(AND(E47=\"\",D49=\"\"),\"r\",\"a\")","v":"r"},"Debitorenbuchhalter"]
[null,null,"Höchster allgemeinbildender Schulabschluss:",{"$nulls":20},{"$f":"IF(AND(E48=\"\",D50=\"\"),\"r\",\"a\")","v":"r"},"--> Bitte entsprechend auswählen."]
[null,null,"Höchster beruflicher Ausbildungsabschluss:",{"$nulls":20},{"$f":"IF(AND(E49=\"\",D51=\"\"),\"r\",\"a\")","v":"r"},"--> Bitte entsprechend auswählen."]
[null,"8.4.","Staatsangehörigkeit (Nationalität):",{"$nulls":3},"deutsch",{"$nulls":9},"andere Nationalität:",{"$nulls":6},{"$f":"IF(AND(E52=\"\",S52=\"\"),\"r\",\"a\")","v":"r"},"spanisch"]
[null,"8.5.","Krankenkasse (gesetzlich):",{"$nulls":20},{"$f":"IF(D53=\"\",\"r\",\"a\")","v":"r"},"Bitte geben Sie den kompletten Namen an (nicht \"AOK\" sondern \"AOK Bayern\")."]
[null,null,"private Krankenversicherung",{"$nulls":3},"ja, Nachweis liegt vor",{"$nulls":15},"nein",{"$f":"IF(AND(D53=\"\",E54=\"\",U54=\"\"),\"r\",\"a\")","v":"r"}]
[null,"8.6.","Status des Mitarbeiters",{"$nulls":3},"geringfügig entlohnt (Mini-Job bis 450,00 €)",{"$nulls":15},"kurzfristig",{"$f":"IF(AND(E55=\"\",M55=\"\",E56=\"\",U57=\"\"),\"r\",\"a\")","v":"r"}]
[{"$nulls":6},"Werkstudent"]
[null,null,"falls Praktikum: beachten Sie bitte den Kommentar",{"$nulls":3},"vorgeschriebenes Zwischenpraktikum",{"$nulls":15},"sonst. Praktikant"]
[null,9,"BERUFSGENOSSENSCHAFT"]
[null,"9.1.","Strukturschlüssel / Bezeichnung:",{"$nulls":20},{"$f":"IF(D59=\"\",\"r\",\"a\")","v":"r"},"Haben Sie mehrere BG-Strukturschlüssel?"]
[null,10,"RENTENVERSICHERUNG BEI GERINGFÜGIG BESCHÄFTIGTEN"]
[null,"10.1.","Aufstockung der RV-Beiträge durch den Mitarbeiter",{"$nulls":3},"nein, Befreiungsantrag liegt vor",{"$nulls":15},"ja",{"$f":"IF(AND(E61=\"\",U61=\"\"),\"r\",\"a\")","v":"r"}]
[null,"10.2.","Versorgungswerk ",{"$nulls":3},"ja, eine Befreiung von der RV liegt vor",{"$nulls":15},"nein",{"$f":"IF(AND(E62=\"\",U62=\"\"),\"r\",\"a\")","v":"r"}]
[null,null,"Name des Versorgungswerks und Mitgliedsnummer",{"$nulls":20},{"$f":"IF(AND(E62<>\"\",D63=\"\"),\"r\",\"a\")","v":"a"}]
[null,11,"BESCHÄFTIGUNGSVERHÄLTNISSE (zeitgleich weitere Arbeitgeber)"]
[null,"11.1.","Bestehen zeitgleich weitere Beschäftigungsverhältnisse ",{"$nulls":3},"nein",{"$nulls":11},"ja",{"$nulls":4},{"$f":"IF(AND(E65=\"\",Q65=\"\"),\"r\",\"a\")","v":"r"}]
[null,"11.2.","Angaben zu anderen / weiteren Beschäftigungen des AN (wegen der korrekten Ermittlung bzw. Beurteilung des Sozialversicherungsstatus)",{"$nulls":3},"KV-pflichtig",{"$nulls":11},"KV-freiwillig (Entgelt über JAE)",{"$nulls":4},{"$f":"IF(AND(Q65<>\"\",AND(Q66=\"\",E66=\"\",E67=\"\",Q67=\"\",E68=\"\",Q68=\"\",G69=\"\",U69=\"\")),\"r\",\"a\")","v":"a"}]
[{"$nulls":6},"Private Krankenversicherung",{"$nulls":11},"Mini-Job (bis 450 Euro)"]
[{"$nulls":6},"Selbstständig",{"$nulls":11},"Rentenbezieher"]
[{"$nulls":4},"seit:",{"$nulls":8},"Ø mtl. Brutto-Entgelt:",{"$nulls":9},{"$f":"IF(AND(Q65<>\"\",OR(G69=\"\",U69=\"\")),\"r\",\"a\")","v":"a"},"--> zwingend notwendig für die richtige SV-Berechnung (TT.MM.JJJJ/ Betrag)"]
[]
[]
[null,null,"Audi BKK - 82889062",null,"X",null,"--",null,"EINS",null,{"v":0,"d":"0.0"},{"$nulls":7},"1 - Ohne Schulabschluss",{"$nulls":3},"1 - Ohne Beruflichen Ausbildungsabschluss"]
[null,null,"Audi BKK Ost - 1083422",{"$nulls":3},"rk",null,"ZWEI",null,0.5,{"$nulls":7},"2 - Haupt-/Volksschulabschluss",{"$nulls":3},"2 - Abschluss einer anerkannten Berufsausbildung"]
[null,null,"Augenoptiker Ausgleichskasse VVag - 33868451",{"$nulls":3},"ev",null,"DREI",null,{"$f":"K73+0.5","v":{"v":1,"d":"1.0"}},{"$nulls":7},"3 - Mittlere Reife oder gleichwertiger Abschluss",{"$nulls":3},"3 - Meister-/Techniker- oder gleichwertiger Fachschulabschluss"]
[null,null,"Bahn-BKK Rechtskreis Ost - 8316149",{"$nulls":3},"fa",null,"VIER",null,{"v":1,"d":"1.0"},{"$nulls":7},"4 - Abitur/Fachabitur",{"$nulls":3},"4 - Bachelor"]
[null,null,"Bahn-BKK Rechtskreis West - 49003443",{"$nulls":3},"lt",null,"FÜNF",null,1.5,{"$nulls":7},"9 - Abschluss unbekannt",{"$nulls":3},"5 - Diplom/Magister/Master/Staatsexamen"]
[null,null,"BARMER GEK - 42938966",{"$nulls":3},"rf",null,"SECHS",null,{"$f":"K76+0.5","v":{"v":2,"d":"2.0"}},{"$nulls":11},"6 - Promotion"]
[null,null,"Bertelsmann BKK - 31323584",{"$nulls":3},"fr",{"$nulls":3},{"v":2,"d":"2.0"},{"$nulls":11},"9- Abschluss unbekannt"]
[null,null,"Bertelsmann BKK/Ost - 1085037",{"$nulls":3},"ak",{"$nulls":3},2.5]
[null,null,"BIG direkt gesund Ost - 5012943",{"$nulls":3},"is",{"$nulls":3},{"$f":"K79+0.5","v":{"v":3,"d":"3.0"}}]
[null,null,"BIG direkt gesund West - 97141402",{"$nulls":3},"fb",{"$nulls":3},{"v":3,"d":"3.0"}]
[null,null,"BKK 24 - 23709856",{"$nulls":3},"ib",{"$nulls":3},3.5]
[null,null,"BKK 24 Ost - 2430065",{"$nulls":3},"fg",{"$nulls":3},{"$f":"K82+0.5","v":{"v":4,"d":"4.0"}}]
[null,null,"BKK Achenbach Buschhütten - 41378433",{"$nulls":3},"fm",{"$nulls":3},{"v":4,"d":"4.0"}]
[null,null,"BKK advita - 60255652",{"$nulls":3},"fs",{"$nulls":3},4.5]
[null,null,"BKK advita Ost - 1075558",{"$nulls":3},"ibw",{"$nulls":3},{"$f":"K85+0.5","v":{"v":5,"d":"5.0"}}]
[null,null,"BKK AESCULAP - 66458503",{"$nulls":3},"iw",{"$nulls":3},{"v":5,"d":"5.0"}]
[null,null,"BKK Akzo Nobel Obernburg - 71579930",{"$nulls":3},"jd",{"$nulls":3},5.5]
[null,null,"BKK B.Braun Melsungen AG - 47034975",{"$nulls":3},"il",{"$nulls":3},{"$f":"K88+0.5","v":{"v":6,"d":"6.0"}}]
[null,null,"BKK BMW / Ost - 1085754",{"$nulls":3},"jh"]
[null,null,"BKK BMW Zentrale - 87271125"]
[null,null,"BKK BPW Wiehl - 30980327"]
[null,null,"BKK Braun-Gillette - 45094199"]
[null,null,"BKK Braun-Gillette Ost - 1085082"]
[null,null,"BKK der Energieversorgung Mittelrhein - 51980490"]
[null,null,"BKK Deutsche Bank AG - 34401277"]
[null,null,"BKK Deutsche Bank AG Ost - 1000672"]
[null,null,"BKK Diakonie - 31323686"]
[null,null,"BKK Diakonie / Ost  - 1013837"]
[null,null,"BKK Dürkopp Adler - 31323799"]
[null,null,"BKK Euregio - 30168049"]
[null,null,"BKK EWE - 26515319"]
[null,null,"BKK EWE-Ost - 1086050"]
[null,null,"BKK exklusiv - 22178373"]
[null,null,"BKK exklusiv Ost - 3591039"]
[null,null,"BKK Faber-Castell & Partner - 86772584"]
[null,null,"BKK firmus - 20156168"]
[null,null,"BKK firmus Ost - 1058922"]
[null,null,"BKK Freudenberg - 63922962"]
[null,null,"BKK Gesundheit - 48698890"]
[null,null,"BKK Gesundheit Ost - 1031123"]
[null,null,"BKK Gildemeister Seidensticker - 31323802"]
[null,null,"BKK Gildemeister Seidensticker-Ost - 1011777"]
[null,null,"BKK Grillo-Werke - 35087667"]
[null,null,"BKK Groz-Beckert - 60393261"]
[null,null,"BKK Henschel Plus - 47034920"]
[null,null,"BKK Herford Minden Ravensberg - 36916980"]
[null,null,"BKK Herkules - 47034953"]
[null,null,"BKK Karl Mayer - 48063096"]
[null,null,"BKK KBA/Ost - 5045203"]
[null,null,"BKK KBA/West - 75925585"]
[null,null,"BKK Linde - 48698889"]
[null,null,"BKK Linde Ost - 1085457"]
[null,null,"BKK MAHLE - 67572537"]
[null,null,"BKK Melitta Plus - 36916935"]
[null,null,"BKK MEM - 1085106"]
[null,null,"BKK Miele - 31323700"]
[null,null,"BKK Miele Ost - 7684386"]
[null,null,"BKK MOBIL OIL - 15517302"]
[null,null,"BKK MTU Friedrichshafen - 65710574"]
[null,null,"BKK PFAFF - 51588416"]
[null,null,"BKK Pfaff / Ost - 1085446"]
[null,null,"BKK Pfalz - 52598579"]
[null,null,"BKK Pfalz/Ost - 7251093"]
[null,null,"BKK ProVita - 88571250"]
[null,null,"BKK ProVita Ost - 8090728"]
[null,null,"BKK Public - 21488086"]
[null,null,"BKK PwC - 47307817"]
[null,null,"BKK PwC Ost - 8596570"]
[null,null,"BKK Rieker.Ricosta.Weisser - 66626976"]
[null,null,"BKK RWE - 16665321"]
[null,null,"BKK Salzgitter - 21203214"]
[null,null,"BKK Salzgitter/Ost - 1085538"]
[null,null,"BKK Scheufelen - 61232758"]
[null,null,"BKK Schwarzwald-Baar-Heuberg - 66614249"]
[null,null,"BKK Stadt Augsburg - 81211334"]
[null,null,"BKK Technoform - 23446040"]
[null,null,"BKK Textilgruppe Hof - 73170269"]
[null,null,"BKK VDN - 37416328"]
[null,null,"BKK VDN/Ost - 4309904"]
[null,null,"BKK VerbundPlus - 69785429"]
[null,null,"BKK Verkehrsbau Union - 92644250"]
[null,null,"BKK Verkehrsbau Union / Ost  - 8476370"]
[null,null,"BKK Vital - 52654083"]
[null,null,"BKK Voralb - 97352653"]
[null,null,"BKK Werra-Meissner - 44037562"]
[null,null,"BKK Wirtschaft & Finanzen - 46967693"]
[null,null,"BKK Wirtschaft & Finanzen/Ost  - 6785450"]
[null,null,"BKK Würth - 67161380"]
[null,null,"BKK Würth Ost - 1085026"]
[null,null,"BKK ZF & Partner  - 69753266"]
[null,null,"BKK ZF & Partner Ost - 1020870"]
[null,null,"BOSCH BKK - 67572593"]
[null,null,"BOSCH BKK Ost - 1073497"]
[null,null,"Brandenburgische BKK - 1017272"]
[null,null,"Continentale BKK - 33865367"]
[null,null,"Daimler BKK - 68216980"]
[null,null,"Daimler BKK / Ost - 2988673"]
[null,null,"DAK-Gesundheit - 15035218"]
[null,null,"DAK-Gesundheit 4. Umlage - 15035218"]
[null,null,"Debeka BKK - 52156763"]
[null,null,"Debeka BKK Ost - 1086243"]
[null,null,"Deutsche BKK / Ost - 1085583"]
[null,null,"Deutsche BKK / West - 67573219"]
[null,null,"Die Bergische Krankenkasse - 42039708"]
[null,null,"Die Schwenninger Krankenkasse - 66458477"]
[null,null,"Die Schwenninger Krankenkasse / Ost - 6818233"]
[null,null,"e.on BKK - 35430071"]
[null,null,"energie-BKK - 29717581"]
[null,null,"energie-BKK Ost - 1085812"]
[null,null,"Ernst & Young BKK - 46939789"]
[null,null,"Hanseatische Krankenkasse - 15031806"]
[null,null,"Heimat Krankenkasse - 31209131"]
[null,null,"Heimat Krankenkasse Ost - 1086094"]
[null,null,"hkk - 20013461"]
[null,null,"IKK Brandenburg u. Berlin Ost - 1020803"]
[null,null,"IKK Brandenburg u. Berlin West - 90397224"]
[null,null,"IKK classic - 15039837"]
[null,null,"IKK classic - 1049203"]
[null,null,"IKK gesund plus (Ost) - 1000455"]
[null,null,"IKK gesund plus (West) - 20013109"]
[null,null,"IKK Nord Rechtskreis Ost - 1005483"]
[null,null,"IKK Nord Rechtskreis West - 14228571"]
[null,null,"IKK Südwest - 55811201"]
[null,null,"KKH Kaufmännische Krankenkasse - 29137937"]
[null,null,"Knappschaft (Minijobzentrale) - 98000006"]
[null,null,"Knappschaft Hauptverwaltung - 98000006"]
[null,null,"Krones BKK - 74157435"]
[null,null,"LKK Baden-Württemberg - 67574619"]
[null,null,"LKK Franken und Oberbayern - 72360029"]
[null,null,"LKK Hessen, Rheinland-Pfalz und Saarland - 47068420"]
[null,null,"LKK Mittel- und Ostdeutschland - 1000308"]
[null,null,"LKK Niederbayern/Oberpfalz und Schwaben - 87119868"]
[null,null,"LKK Niedersachsen-Bremen - 29147110"]
[null,null,"LKK Nordrhein-Westfalen - 39873587"]
[null,null,"LKK Schleswig-Holstein und Hamburg - 13199426"]
[null,null,"Merck BKK - 44377882"]
[null,null,"Metzinger BKK - 66105948"]
[null,null,"mhplus BKK - 63494759"]
[null,null,"mhplus BKK Ost - 7812433"]
[null,null,"Novitas BKK - 35134022"]
[null,null,"Novitas BKK Ost - 3847834"]
[null,null,"pronova BKK - 15872672"]
[null,null,"pronova BKK/Ost  - 15874275"]
[null,null,"R+V BKK - 48944809"]
[null,null,"R+V BKK Ost - 1085890"]
[null,null,"Salus BKK - 44953697"]
[null,null,"Salus BKK Ost  - 1085195"]
[null,null,"SBK HV Ost - 1085787"]
[null,null,"SBK HV West - 87954699"]
[null,null,"SECURVITA BKK - 15517482"]
[null,null,"SECURVITA BKK Ost - 1085402"]
[null,null,"SIEMAG BKK - 41378558"]
[null,null,"SKD BKK - 74773896"]
[null,null,"SKD BKK Ost - 1085242"]
[null,null,"Südzucker-BKK - 62332660"]
[null,null,"Südzucker-BKK Ost - 1085823"]
[null,null,"SVLFG, Landwirtschaftliche Krankenkasse Ost - 1000650"]
[null,null,"SVLFG, Landwirtschaftliche Krankenkasse West - 47069693"]
[null,null,"Techniker Krankenkasse - 15027365"]
[null,null,"Thüringer Betriebskrankenkasse - 1068979"]
[null,null,"TUI BKK - 29074470"]
[null,null,"TUI BKK / Ost - 8227948"]
[null,null,"Vereinigte BKK  - 45094601"]
[null,null,"Vereinigte BKK Ost - 1085219"]
[null,null,"VIACTIV - 40180080"]
[null,null,"Wieland BKK - 68659646"]
[null,null,"WMF BKK - 61232769"]
[null,null,"WMF BKK / OST - 1085231"]

{"sheet":"Verträge","index":3,"n_rows":37,"n_cols":26,"rows_kept":37,"merged":[[1,1,1,22],[2,2,2,22],[3,4,3,17],[4,4,4,8],[5,3,5,22],[6,3,6,22],[8,2,8,22],[9,15,9,18],[9,20,9,22],[10,4,10,6],[10,12,10,14],[11,6,11,10],[12,3,12,22],[13,4,13,22],[14,4,14,22],[15,3,15,22],[16,3,16,22],[18,2,18,22],[19,6,19,7],[19,20,19,22],[20,4,20,6],[20,12,20,14],[21,4,21,8],[21,12,21,16],[22,24,24,25],[25,24,25,25],[27,6,27,10],[28,3,28,22],[29,4,29,22],[30,4,30,22],[31,3,31,22],[32,3,32,22]]}
[]
[null,"VERTRÄGE\nVL / betriebl. Altersversorgung",{"$nulls":22},"ROTES Dreieck (rechts oben)","nach Klick auf Kästchen folgt Hinweis"]
[null,1,"ARBEITNEHMER",{"$nulls":21},"Beispiele"]
[null,"1.1.","Firma (laut Arbeitsvertrag) / Ihre Kundennummer:",null,{"$f":"IF(Mitarbeiter!E4=\"\",Aushilfen!E4,Mitarbeiter!E4)","v":0},{"$nulls":15},"Accountnr:",null,{"$f":"IF(Mitarbeiter!W4=\"\",Aushilfen!W4,Mitarbeiter!W4)","v":0},null,"Die Daten werden aus den Registern \"Mitarbeiter\" bzw. \"Aushilfe\" übernommen."]
[null,"1.2.","Personal-Nummer (wenn vorgegeben):",null,{"$f":"IF(Mitarbeiter!E8=\"\",Aushilfen!D7,Mitarbeiter!E8)","v":0}]
[null,"1.3.","Name, Namenszusatz, Titel:",{"$f":"IF(Mitarbeiter!D9=\"\",Aushilfen!D8,Mitarbeiter!D9)","v":0}]
[null,null,"Vorname:",{"$f":"IF(Mitarbeiter!D10=\"\",Aushilfen!D9,Mitarbeiter!D10)","v":0}]
[]
[null,2,"VL-VERTRAG"]
[null,"2.1.","Vermögenswirksame Leistungen:",{"$nulls":3},"keine",null,null,"   Kopie (beigefügt)","ja, Kopie beifügen",{"$nulls":12},{"$f":"IF(AND(E10=\"\",I10=\"\"),\"r\",\"a\")","v":"r"},"--> Bitte entsprechend ausfüllen."]
[null,null,"Überweisungs-Betrag:",{"$nulls":13},"davon AG",{"$nulls":5},"laut Tarif",{"$f":"IF(AND(E10=\"\",E11=\"\"),\"r\",\"a\")","v":"r"},"40 Euro / davon 20 Euro Arbeitgeber-Zuschuss"]
[null,"2.2.","Zahlung per:",{"$nulls":3},"Überweisung oder EZV",{"$nulls":7},"Lastschrift oder OnlineBanking",{"$nulls":8},{"$f":"IF(AND(E10=\"\",E12=\"\",M12=\"\"),\"r\",\"a\")","v":"r"},"EZV = Elektronischer Zahlungsverkehr"]
[null,null,"Bankname (wenn Überweisung oder EZV): ",{"$nulls":20},{"$f":"IF(OR(AND(E10=\"\",$E$12=\"\",$M$12=\"\"),AND(E10=\"\",E12<>\"\",D13=\"\")),\"r\",\"a\")","v":"r"},"Sparkasse"]
[null,null,"IBAN:",null,"",{"$nulls":18},{"$f":"IF(OR(AND($E$12=\"\",$M$12=\"\"),AND($E$12<>\"\",LEN(SUBSTITUTE( E14,\" \",\"\"))<>22)),\"r\",\"a\")","v":"r"},"Bitte geben Sie die IBAN ohne Leerzeichen ein!"]
[null,null,"BIC:",{"$nulls":20},{"$f":"IF(OR(AND($E$12=\"\",$M$12=\"\"),AND($E$12<>\"\",LEN(SUBSTITUTE( E15,\" \",\"\"))<>11)),\"r\",\"a\")","v":"r"},"Bitte geben Sie die BIC ohne Leerzeichen ein!"]
[null,null,"Empfänger:",{"$nulls":20},{"$f":"IF(AND(E10=\"\",D16=\"\"),\"r\",\"a\")","v":"r"},"LBS"]
[null,null,"Vertragsnummer / Verwendungszweck:",{"$nulls":20},{"$f":"IF(AND(E10=\"\",D17=\"\"),\"r\",\"a\")","v":"r"},"VL046235648-01"]
[]
[null,3,"BETRIEBLICHE ALTERSVERSORGUNG"]
[null,"3.1.","Betriebliche Altersversorgung des AN:",{"$nulls":3},"keine",{"$nulls":3},"ja, Kopie beifügen",{"$nulls":7},"Betrag:",{"$nulls":4},{"$f":"IF(AND(E20=\"\",OR(I20=\"\",U20=\"\")),\"r\",\"a\")","v":"r"},"--> Bitte Kopien immer beifügen bzw. nachreichen."]
[null,"3.2.","Finanzierung der betrieblichen Altersversorgung (Euro):",{"$nulls":5},"Arbeitnehmer",{"$nulls":7},"zusätzlich vom Arbeitgeber gezahlter Betrag",{"$nulls":6},{"$f":"IF(AND(E20=\"\",E21+M21<>U20),\"r\",\"a\")","v":"a"},"Arbeitnehmer = Entgeltumwandlung / Arbeitgeber = zusätzlich zum Arbeitsentgelt"]
[null,"3.3.","Versorgungszusage (Vertragsabschluss):",{"$nulls":15},"erster Abrechnungsmonat",{"$nulls":4},{"$f":"IF(AND(E20=\"\",OR(E22=\"\",M22=\"\")),\"r\",\"a\")","v":"r"},"23.11.2009 / 01.2010"]
[null,"3.4.","Durchführungsweg der betr. Altersversorgung:",{"$nulls":3},"Direktversicherung",{"$nulls":7},"Pensionskasse",{"$nulls":8},{"$f":"IF(AND(E20=\"\",E23=\"\",I23=\"\"),\"r\",\"a\")","v":"r"},"--> Die Daten sollten Sie im Antrag bzw. im Vertrag der Versicherung finden. In Zweifelsfragen sprechen Sie die Angaben mit der Versicherung ab."]
[{"$nulls":6},"Pensionsfonds",{"$nulls":7},"Unterstützungskasse"]
[{"$nulls":6},"Direktzusage"]
[null,null,"Versteuerung nach:",{"$nulls":3},"§ 3 Nr. 63 EStG",{"$nulls":7},"§ 40b EStG",{"$nulls":7},"§ 4d bzw. 6a EStG",{"$f":"IF(AND(E20=\"\",E26=\"\",M26=\"\",U26=\"\"),\"r\",\"a\")","v":"r"}]
[null,null,"pauschale Lohnst.bei §40b EStG (Altverträge bis 31.12.2004):",{"$nulls":3},"keine",{"$nulls":7},"durch AN",{"$nulls":7},"durch AG",{"$f":"IF(AND(E20=\"\",E22<DATEVALUE(\"01.01.2005\"),E27=\"\",M27=\"\",U27=\"\"),\"r\",\"a\")","v":"r"}]
[null,"3.5.","Zahlung per:",{"$nulls":3},"Überweisung oder EZV",{"$nulls":7},"Lastschrift oder OnlineBanking",{"$nulls":8},{"$f":"IF(AND(E20=\"\",E28=\"\",M28=\"\"),\"r\",\"a\")","v":"r"},"EZV = Elektronischer Zahlungsverkehr"]
[null,null,"Bankname (wenn Überweisung oder EZV): ",{"$nulls":20},{"$f":"IF(OR(AND(E20=\"\",E28=\"\",M28=\"\"),AND(E28<>\"\",D29=\"\")),\"r\",\"a\")","v":"r"},"Sparkasse"]
[null,null,"IBAN:",null,"",{"$nulls":18},{"$f":"IF(OR(AND($E$28=\"\",$M$28=\"\"),AND($E$28<>\"\",LEN(SUBSTITUTE( E30,\" \",\"\"))<>22)),\"r\",\"a\")","v":"r"},"Bitte geben Sie die IBAN ohne Leerzeichen ein!"]
[null,null,"BIC:",{"$nulls":20},{"$f":"IF(OR(AND($E$28=\"\",$M$28=\"\"),AND($E$28<>\"\",LEN(SUBSTITUTE( E31,\" \",\"\"))<>11)),\"r\",\"a\")","v":"r"},"Bitte geben Sie die BIC ohne Leerzeichen ein!"]
[null,null,"Empfänger:",{"$nulls":20},{"$f":"IF(AND(E20=\"\",D32=\"\"),\"r\",\"a\")","v":"r"},"LBS"]
[null,null,"Vertragsnummer / Verwendungszweck:",{"$nulls":20},{"$f":"IF(AND(E20=\"\",D33=\"\"),\"r\",\"a\")","v":"r"},"VL046235648-01"]
[null,null,"Zahlungsintervall:",null,null,"monatlich",{"$nulls":4},"jährlich",{"$nulls":3},"quartalsweise",{"$nulls":7},"halbjährlich",{"$f":"IF(AND(E34=\"\",I34=\"\",M34=\"\",U34=\"\",E20=\"\"),\"r\",\"a\")","v":"r"},"--> Bitte entsprechend auswählen."]
[]
[]
[{"$nulls":4},"X"]